Workbook

Sheet １年まとめ
A8: 月 | B8: 収入 | F8: 支出 | G8: ＋ or － | H8: 割合 | I8: 生活費 | J8: 固定費 | K8: 純貯金から － | L8: 振分貯金 から － | M8: 実質 支出 | N8: （一人分給料） ＋ or － | O8: 貯金マイナス | P8: 家計費 補充 | Q8: 太陽光 | S8: 食費 | T8: 日雑・化粧 | U8: 娯楽・衣服 | V8: ｶﾞｿﾘﾝ・車 | W8: その他 | X8: おこづかい （２人分) | Y8: 携帯 | Z8: ネット | AA8: 電気 | AB8: 水道 （下水） | AC8: NHK | AD8: 住宅ローン | AE8: 生命・医療 保険 | AF8: 保険 (学資・貯蓄) | AG8: 小学校 | AH8: 保育園 | AI8: メモ
B9: 夫 | C9: 妻 | D9: その他 | E9: 合計 | Q9: 金額 | R9: kwh
A10: 1 | B10: 300000 | C10: 300000 | D10: 10000 | E10: =SUM(B10:D10) -> 610000 | F10: 362300 | G10: =E10-F10 -> 247700 | H10: =IF(E10=0,0,G10/E10) -> 0.4060655738 | I10: 134700 | J10: 139600 | K10: 8000 | L10: 80000 | M10: =F10-(K10+L10) -> 274300 | N10: =IF(B10=0,0,B10-M10) -> 25700 | P10: 0 | Q10: 10000 | R10: 111 | S10: 42000 | T10: 17500 | U10: 3500 | V10: 8000 | W10: 3700 | X10: 60000 | Y10: 4500 | Z10: 5500 | AA10: 8000 | AB10: - | AC10: 2600 | AD10: 80000 | AE10: 22000 | AF10: 15000 | AG10: 2000
A11: 2 | B11: 300000 | C11: 300000 | D11: 10000 | E11: =SUM(B11:D11) -> 610000 | F11: 326700 | G11: 283300 | H11: 0.4644262295 | I11: 133700 | J11: 147000 | K11: 26000 | L11: 20000 | M11: =F11-(K11+L11) -> 280700 | N11: =IF(B11=0,0,B11-M11) -> 19300 | P11: 0 | Q11: 10000 | R11: 111 | S11: 42000 | T11: 16500 | U11: 3500 | V11: 8000 | W11: 3700 | X11: 60000 | Y11: 4500 | Z11: 5500 | AA11: 8000 | AB11: 10000 | AC11: - | AD11: 80000 | AE11: 22000 | AF11: 15000 | AG11: 2000
A12: 3 | E12: 0 | G12: 0 | H12: 0 | M12: 0 | N12: 0
A13: 4 | E13: 0 | G13: 0 | H13: 0 | M13: 0 | N13: =IF(B13=0,0,B13-M13) -> 0
A14: 春ボーナス | B14: 0 | C14: 0 | D14: 0 | E14: 0 | F14: 0 | G14: 0 | H14: 0 | I14: 0 | J14: 0 | K14: 0 | L14: 0 | M14: 0 | N14: 0 | Q14: - | R14: - | S14: - | T14: - | U14: - | V14: - | W14: - | X14: - | Y14: - | Z14: - | AA14: - | AB14: - | AC14: - | AD14: - | AE14: - | AF14: - | AG14: - | AH14: -
A15: 5 | E15: =SUM(B15:D15) -> 0 | G15: =E15-F15 -> 0 | H15: =IF(E15=0,0,G15/E15) -> 0 | M15: =F15-(K15+L15) -> 0 | N15: =IF(B15=0,0,B15-M15) -> 0
A16: 6 | E16: 0 | G16: 0 | H16: 0 | M16: 0 | N16: 0
A17: 7 | E17: =SUM(B17:D17) -> 0 | G17: =E17-F17 -> 0 | H17: =IF(E17=0,0,G17/E17) -> 0 | M17: =F17-(K17+L17) -> 0 | N17: =IF(B17=0,0,B17-M17) -> 0
A18: 夏ボーナス | B18: 0 | C18: 0 | D18: 0 | E18: 0 | F18: 0 | G18: 0 | H18: 0 | I18: 0 | J18: 0 | K18: 0 | L18: 0 | M18: 0 | N18: 0 | Q18: - | R18: - | S18: - | T18: - | U18: - | V18: - | W18: - | X18: - | Y18: - | Z18: - | AA18: - | AB18: - | AC18: - | AD18: - | AE18: - | AF18: - | AG18: - | AH18: -
A19: 8 | E19: 0 | G19: 0 | H19: =IF(E19=0,0,G19/E19) -> 0 | M19: =F19-(K19+L19) -> 0 | N19: 0
A20: 9 | E20: 0 | G20: 0 | H20: =IF(E20=0,0,G20/E20) -> 0 | M20: 0 | N20: 0
A21: 10 | E21: 0 | G21: 0 | H21: =IF(E21=0,0,G21/E21) -> 0 | M21: =F21-(K21+L21) -> 0 | N21: 0
A22: 11 | E22: 0 | G22: 0 | H22: =IF(E22=0,0,G22/E22) -> 0 | M22: 0 | N22: 0
A23: 12 | E23: 0 | G23: 0 | H23: =IF(E23=0,0,G23/E23) -> 0 | M23: 0 | N23: =IF(B23=0,0,B23-M23) -> 0
A24: 冬ボーナス | B24: 0 | C24: 0 | D24: 0 | E24: 0 | F24: 0 | G24: 0 | H24: 0 | I24: 0 | J24: 0 | K24: 0 | L24: 0 | M24: 0 | N24: =IF(B24=0,0,B24-M24) -> 0 | Q24: - | R24: - | S24: - | T24: - | U24: - | V24: - | W24: - | X24: - | Y24: - | Z24: - | AA24: - | AB24: - | AC24: - | AD24: - | AE24: - | AF24: - | AG24: - | AH24: -
A25: 合計 | B25: =SUM(B10:B24) -> 600000 | C25: 600000 | D25: 20000 | E25: 1220000 | F25: 689000 | G25: 531000 | H25: =IF(E25=0,0,G25/E25) -> 0.4352459016 | I25: =SUM(I10:I24) -> 268400 | J25: =SUM(J10:J24) -> 286600 | K25: =SUM(K10:K24) -> 34000 | L25: 100000 | M25: 555000 | N25: 45000 | O25: 0 | P25: 0 | Q25: 20000 | S25: 84000 | T25: 34000 | U25: 7000 | V25: 16000 | W25: 7400 | X25: 120000 | Y25: 9000 | Z25: 11000 | AA25: 16000 | AB25: 10000 | AC25: 2600 | AD25: 160000 | AE25: =SUM(AE10:AE24) -> 44000 | AF25: =SUM(AF10:AF24) -> 30000 | AG25: =SUM(AG10:AG24) -> 4000 | AH25: 0
A26: 平均 | B26: =(B10+B11+B12+B13+B15+B16+B17+B19+B20+B21+B22+B23)/12 -> 50000 | C26: =(C10+C11+C12+C13+C15+C16+C17+C19+C20+C21+C22+C23)/12 -> 50000 | D26: - | E26: - | F26: =F25/12 -> 57416.66667 | G26: =G25/12 -> 44250 | H26: - | I26: =I25/12 -> 22366.66667 | J26: 23883.33333 | K26: 2833.333333 | L26: 8333.333333 | M26: 46250 | N26: 3750 | O26: 0 | P26: 0 | Q26: =Q25/12 -> 1666.666667 | S26: =S25/12 -> 7000 | T26: 2833.333333 | U26: 583.3333333 | V26: 1333.333333 | W26: 616.6666667 | X26: 10000 | Y26: 750 | Z26: 916.6666667 | AA26: 1333.333333 | AB26: 833.3333333 | AC26: 216.6666667 | AD26: - | AE26: - | AF26: - | AH26: -
A27: ボーナス抜き平均 | B27: - | C27: - | D27: - | E27: - | F27: - | G27: =(G10+G11+G12+G13+G15+G16+G17+G19+G20+G21+G22+G23)/12 -> 44250 | H27: - | I27: - | J27: - | K27: - | L27: - | M27: - | N27: =(N10+N11+N12+N13+N15+N16+N17+N19+N20+N21+N22+N23)/12 -> 3750 | O27: =(O10+O11+O12+O13+O15+O16+O17+O19+O20+O21+O22+O23)/12 -> 0 | P27: =(P10+P11+P12+P13+P15+P16+P17+P19+P20+P21+P22+P23)/12 -> 0 | Q27: - | S27: - | T27: - | U27: - | V27: - | W27: - | X27: - | Y27: - | Z27: - | AA27: - | AB27: - | AC27: - | AD27: - | AE27: - | AF27: - | AH27: -
C30: ↓振り分け後自由な貯金 | E30: ↓計算式後、値を貼付けしてかわらないようにする。
A31: 月 | B31: 実質貯金月 | C31: 純貯金の移り変わり | E31: 年間収支
C32: 貯金 | D32: 差 | J32: 記念日、年単位出費
A33: 1 | B33: - | C33: 0 | D33: - | J33: 月 | K33: 予算 | L33: 実績
A34: 2 | B34: 1月分 | C34: 313400 | D34: =IF(C34="","0",C34-C33) -> 313400 | E34: 247700 | J34: 1 | K34: 100000 | M34: 子①習い事
A35: 3 | B35: 2月分 | D35: =IF(C35="","0",C35-C34) -> 0 | J35: 2 | K35: 10000 | L35: 8000 | M35: 子①誕生日
A36: 4 | B36: 3月分 | D36: 0 | J36: 2 | K36: 20000 | L36: 18000 | M36: 子①誕生日お出かけ
A37: 5 | B37: 4月分 | D37: 0 | J37: 3 | K37: 20000 | M37: 夫誕生日
A38: 6 | B38: 5月分 | D38: 0 | J38: 3 | K38: 20000 | M38: 妻誕生日
A39: 7 | B39: 6月分 | D39: =IF(C39="","0",C39-C38) -> 0 | J39: 4 | K39: 10000 | M39: 子②誕生日
A40: 8 | B40: 7月分 | D40: 0 | J40: 4 | K40: 20000 | M40: 子②誕生日お出かけ
A41: 9 | B41: 8月分 | D41: 0 | J41: 5 | K41: 30000 | M41: 結婚記念日ご飯
A42: 10 | B42: 9月分 | D42: 0 | J42: 8 | K42: 100000 | M42: 家族旅行
A43: 11 | B43: 10月分 | D43: 0 | J43: 12 | K43: 20000 | M43: クリスマス
A44: 12 | B44: 11月分 | D44: 0 | J44: 12 | K44: 10000 | M44: クリスマスプレゼント
A45: - | B45: 12月分 | D45: 0 | J45: 12 | K45: 10000 | M45: お年玉
A46: 合計 | D46: =SUM(D33:D45) -> 313400 | J46: 12 | K46: 30000 | M46: お正月
J47: 合計 | K47: =SUM(K34:K46) -> 400000 | L47: =SUM(L34:L46) -> 26000
A52: ドロップダウンリスト
A53: 外食
A54: 衣服費（夫）
A55: 衣服費（妻）
A56: 衣服費（子①）
A57: 衣服費（子②）
A58: 娯楽費
A59: 記念日、年単位出費
A60: 体メンテ
A61: 家計費補充
A62: 内訳から引く

Sheet ﾃﾝﾌﾟﾚｰﾄ
BR1: 銀行メモ
BT2: 夫□□銀行 | BZ2: 2500000 | CF2: 内訳メモからマイナス | CM2: 内訳メモ | CU2: いくら | CZ2: 車関係（積立の内訳） | DN2: その他（積立の内訳） | EB2: 衣服費（内訳）
BT3: 妻〇〇銀行 | BZ3: 1500000 | CF3: 純貯金からマイナス | CM3: 自由費 | CU3: 100000 | CZ3: 2022/01 | DC3: 共通 | DF3: 車検の積立て | DJ3: 200000 | DN3: 勉強 | DQ3: 資格取得、自己啓発費用 | DX3: 200000 | EB3: 妻 | EL3: 10000
CF4: ボーナスから振分 | CZ4: 2021/05 | DC4: 共通 | DF4: 車税積立て（2人分） | DJ4: 50000 | DN4: 子ども | DQ4: 子①のお金（児童手当） | DX4: 800000 | EB4: 夫 | EL4: 10000
BT5: ネット銀行定期 | BZ5: 1000000 | CF5: （マイナスは純貯金からする | CZ5: 2021/09 | DC5: 妻 | DF5: 車保険 | DJ5: 60000 | DN5: 子ども | DQ5: 子①のお金（児童手当以外） | DX5: 20000 | EB5: 子① | EL5: 20000
BT6: ネット銀行運用 | BZ6: 1000000 | CF6: こと！） | CZ6: 2021/01 | DC6: 夫 | DF6: 車保険 | DJ6: 0 | DN6: 子ども | DQ6: 子①のお金（将来の学費貯金） | DX6: 500000 | EB6: 子② | EL6: 20000
BT7: カード払い予定 | BZ7: 100000 | CM7: 旅行用（日帰り含む） | CU7: 160000 | CZ7: 2025 | DC7: 妻 | DF7: 車の買替え用 | DJ7: 500000 | DN7: 子ども | DQ7: 子②のお金（児童手当） | DX7: 100000 | EL7: =SUM(EL3:EN6) -> 60000
BT8: ゆうちょ | BZ8: 20000 | CM8: 娯楽費 | CU8: 30000 | DN8: 子ども | DQ8: 子②のお金（児童手当以外） | DX8: 30000
CM9: 衣服費 ※ | CU9: =EL7 -> 60000 | DJ9: =SUM(DJ3:DL8) -> 810000 | DN9: 子ども | DQ9: 子②のお金（将来の学費貯金） | DX9: 200000
BR10: 学資・保険運用 | CM10: 住宅関係 ※ | CU10: =DJ18 -> 900000
BT11: 子①学資保険 | BY11: 2035年 | BZ11: 200万（予定） | CM11: 車関係 ※ | CU11: =DJ9 -> 810000 | CZ11: 住宅関係（積立の内訳）
CM12: その他の積立 ※ | CU12: =DX18 -> 3960000 | CZ12: 住宅補修用 | DC12: 太陽光プラス分 | DJ12: 400000 | DN12: 別管理 | DQ12: 生活防衛資金 | DX12: 1500000
CZ13: 住宅補修用 | DC13: 家メンテナンス | DJ13: 0
CM15: 貯金用 | CU15: =(SUM(BZ2:CC6)+BZ8)-SUM(CU3:CX14) -> 0 | CZ15: 税金 | DC15: 固定資産税積立て | DJ15: 200000 | DN15: 別管理 | DQ15: 家電まとめて | DX15: 200000
CM16: 合計 | CU16: =SUM(CU3:CX15) -> 6020000 | DN16: 別管理 | DQ16: 定額給付金 | DX16: 330000
CZ17: 住宅ローン | DC17: 繰上げ返済用 | DJ17: 300000 | DN17: 予算確保 | DQ17: 自転車用 | DX17: 80000
B18: 日付 | D18: 入ったお金 | G18: 入った理由 | M18: 使ったお金 | P18: 食費 | Z18: 日用雑貨・化粧品 | AJ18: 娯楽・衣服 | AT18: ガソリン・車関係 | BD18: その他（医療費含） | BN18: 残金 | BQ18: 日付 | BS18: 入ったお金・理由 | CC18: 使ったお金・理由 | CM18: 残金 | DJ18: =SUM(DJ12:DL17) -> 900000 | DX18: =SUM(DX3:DZ17) -> 3960000
M19: =Q19+AA19+AK19+AU19+BE19 -> 0 | AD19: 前月からの繰越 | BN19: 11097
B20: 1 | D20: 150000 | G20: ○月分の生活費 | M20: 60000 | BE20: 60000 | BH20: ２人分おこづかい | BN20: =IF(B20="",0,BN19+D20-M20) -> 101097 | CC20: 7M | CD20: 150000 | CG20: ○月分生活費 | CM20: 夫□□銀行 | CQ20: =BZ2-CD20 -> 2350000
B21: 1 | M21: 0 | BN21: 101097
M22: 0 | BN22: 0
M23: 0 | BN23: 0
M24: 0 | BN24: 0
M25: 0 | BN25: 0
M26: 0 | BN26: 0
M27: 0 | BN27: 0
M28: 0 | BN28: 0
M29: 0 | BN29: 0
M30: 0 | BN30: 0
M31: 0 | BN31: 0
M32: 0 | BN32: 0
M33: 0 | BN33: 0
M34: 0 | BN34: 0
M35: 0 | BN35: 0
M36: 0 | BN36: 0
M37: 0 | BN37: 0
M38: 0 | BN38: 0
M39: 0 | BN39: 0
M40: 0 | BN40: 0 | BQ40: 28 | BS40: 6M | BW40: お金の移動 | CM40: 夫□□銀行
M41: 0 | BN41: 0 | BQ41: 28 | CC41: 7M | CG41: お金の移動 | CM41: 妻〇〇銀行
M42: 0 | BN42: 0 | BW42: お給料○月分(夫) | CM42: 夫□□銀行
M43: 0 | BN43: 0 | BW43: お給料○月分（妻） | CM43: 妻〇〇銀行
M44: 0 | BN44: 0 | BW44: 太陽光発電プラス分 | CM44: 夫□□銀行 | CU44: 太陽光ﾌﾟﾗｽ分
M45: 0 | BN45: 0
M46: 0 | BN46: 0
M47: 0 | BN47: 0
M48: 0 | BN48: 0
M49: 0 | BN49: 0
M50: 0 | BN50: 0
M51: 0 | BN51: 0 | CC51: 7M | CG51: カード引き落し | CM51: カード払い予定
M52: 0 | BN52: 0 | BS52: 6M | BT52: =SUMIF(CJ60:CJ71,"カード",BZ60:BZ71) -> 0 | BW52: カード払い予定 | CM52: カード払い予定
M53: 0 | BN53: 0 | CC53: 71 | CD53: =SUM(BZ60:CB70) -> 0 | CG53: 固定支出 | CM53: 夫□□銀行
M54: 0 | BN54: 0 | CC54: 71 | CG54: 小学校引落とし | CM54: ゆうちょ
M55: 0 | BN55: 0
M56: 0 | BN56: 0
N59: 生活費支出 | P59: =SUM(M20:O56) -> 60000 | AD59: 45000 | AK59: 26000 | AY59: 8000 | BF59: 15000 | BX59: 日付 | BZ59: お金 | CC59: 理由 | CJ59: どこから
G60: 収入 | I60: =SUM(BT42:BV44) -> 0 | N60: 支出 | P60: =SUM(M20:O56)+BP60+BQ62+BQ63 -> 60000 | U60: ＋ or － | X60: =I60-P60 -> -60000 | AD60: 食費 | AG60: =SUM(Q20:S56) -> 0 | AK60: 日雑・化粧 | AN60: =SUM(AA20:AC56) -> 0 | AR60: 娯楽・衣服 | AU60: =SUM(AK20:AM56) -> 0 | AY60: ｶﾞｿﾘﾝ・車 | BB60: =SUM(AU20:AW56) -> 0 | BF60: その他 | BI60: =SUM(BE20:BG56) -> 60000 | BM60: 固定費 | BP60: =SUMIF(CC19:CC56,71,CD19:CF56) -> 0 | CC60: 夫携帯 | CJ60: カード
CC61: 妻携帯 | CJ61: カード
N62: (実質) | P62: =P60-(BQ62+BQ63) -> 60000 | AD62: (材料) | AG62: =SUMIF(P20:P56,11,Q20:S56) -> 0 | AK62: (日用雑貨) | AN62: =SUMIF(Z20:Z56,21,AA20:AC56) -> 0 | AR62: (服：夫) | AU62: =SUMIF(AJ20:AJ56,31,AK20:AM56)+SUMIF(CU20:CU56,"衣服費（夫）",CD20:CF56) -> 0 | AY62: (ｶﾞｿﾘﾝ：夫) | BB62: =SUMIF(AT20:AT56,41,AU20:AW56) -> 0 | BF62: (医療：夫) | BI62: =SUMIF(BD20:BD56,51,BE20:BG56) -> 0 | BM62: 純貯金から- | BQ62: =SUMIF(CC19:CC56,72,CD19:CF56) -> 0 | CC62: 通話料 | CJ62: カード
AD63: (米代) | AG63: =SUMIF(P20:P56,12,Q20:S56) -> 0 | AK63: (化粧品) | AN63: =SUMIF(Z20:Z56,22,AA20:AC56) -> 0 | AR63: (服：妻) | AU63: =SUMIF(AJ20:AJ56,32,AK20:AM56)+SUMIF(CU20:CU56,"衣服費（妻）",CD20:CF56) -> 0 | AY63: (ｶﾞｿﾘﾝ：妻) | BB63: =SUMIF(AT20:AT56,42,AU20:AW56) -> 0 | BF63: (医療：妻) | BI63: =SUMIF(BD20:BD56,52,BE20:BG56) -> 0 | BM63: 振分貯金から- | BQ63: =SUMIF(CC19:CC56,73,CD19:CF56) -> 0 | CC63: ネット | CJ63: カード
AD64: (外食) | AG64: =SUMIF(P20:P56,13,Q20:S56)+SUMIF(CU20:CU56,"外食",CD20:CF56) -> 0 | AK64: (子②用品) | AN64: =SUMIF(Z20:Z56,23,AA20:AC56) -> 0 | AR64: (服：子①) | AU64: =SUMIF(AJ20:AJ56,33,AK20:AM56)+SUMIF(CU20:CU56,"衣服費（子①）",CD20:CF56) -> 0 | AY64: (車メンテ) | BB64: =SUMIF(AT20:AT56,43,AU20:AW56) -> 0 | BF64: (医療：子①) | BI64: =SUMIF(BD20:BD56,53,BE20:BG56) -> 0 | CC64: 電気○月分(999kwh) | CJ64: カード
AR65: (服：子②) | AU65: =SUMIF(AJ20:AJ56,33,AK20:AM56)+SUMIF(CU20:CU56,"衣服費（子②）",CD20:CF56) -> 0 | BF65: (医療：子②) | BI65: =SUMIF(BD20:BD56,54,BE20:BG56) -> 0 | BM65: 家計費ﾏｲﾅｽ | BQ65: =SUMIF(CU20:CU56,"家計費補充",CD20:CF56) -> 0 | CC65: 水道（上下水）(99㎥) | CJ65: 夫□□銀行
AR66: (娯楽) | AU66: =SUMIF(AJ20:AJ56,33,AK20:AM56)+SUMIF(CU20:CU56,"娯楽費",CD20:CF56) -> 0 | BF66: (学校) | BI66: =SUMIF(BD20:BD56,61,BE20:BG56) -> 0 | CC66: ＮＨＫ○、○月分 | CJ66: 夫□□銀行
CC67: 住宅ローン | CJ67: 夫□□銀行
CC68: 生命・医療保険(夫) | CJ68: カード
CC69: 生命・医療保険(妻) | CJ69: カード
CC70: 学資保険 | CJ70: カード

Sheet 1月
BR1: 銀行メモ
BT2: 夫□□銀行 | BZ2: 2500000 | CF2: 内訳メモからマイナス | CM2: 内訳メモ | CU2: いくら | CZ2: 車関係（積立の内訳） | DN2: その他（積立の内訳） | EB2: 衣服費（内訳）
BT3: 妻〇〇銀行 | BZ3: 1500000 | CF3: 純貯金からマイナス | CM3: 自由費 | CU3: 100000 | CZ3: 2022/01 | DC3: 共通 | DF3: 車検の積立て | DJ3: 200000 | DN3: 勉強 | DQ3: 資格取得、自己啓発費用 | DX3: 200000 | EB3: 妻 | EL3: 10000
CF4: ボーナスから振分 | CZ4: 2021/05 | DC4: 共通 | DF4: 車税積立て（2人分） | DJ4: 50000 | DN4: 子ども | DQ4: 子①のお金（児童手当） | DX4: 800000 | EB4: 夫 | EL4: 10000
BT5: ネット銀行定期 | BZ5: 1000000 | CF5: （マイナスは純貯金からする | CZ5: 2021/09 | DC5: 妻 | DF5: 車保険 | DJ5: 60000 | DN5: 子ども | DQ5: 子①のお金（児童手当以外） | DX5: 20000 | EB5: 子① | EL5: 20000
BT6: ネット銀行運用 | BZ6: 1000000 | CF6: こと！） | CZ6: 2021/01 | DC6: 夫 | DF6: 車保険 | DJ6: 0 | DN6: 子ども | DQ6: 子①のお金（将来の学費貯金） | DX6: 500000 | EB6: 子② | EL6: 20000
BT7: カード払い予定 | BZ7: 100000 | CM7: 旅行用（日帰り含む） | CU7: 160000 | CZ7: 2025 | DC7: 妻 | DF7: 車の買替え用 | DJ7: 500000 | DN7: 子ども | DQ7: 子②のお金（児童手当） | DX7: 100000 | EL7: =SUM(EL3:EN6) -> 60000
BT8: ゆうちょ | BZ8: 20000 | CM8: 娯楽費 | CU8: 30000 | DN8: 子ども | DQ8: 子②のお金（児童手当以外） | DX8: 30000
CM9: 衣服費 ※ | CU9: =EL7 -> 60000 | DJ9: =SUM(DJ3:DL8) -> 810000 | DN9: 子ども | DQ9: 子②のお金（将来の学費貯金） | DX9: 200000
BR10: 学資・保険運用 | CM10: 住宅関係 ※ | CU10: =DJ18 -> 900000
BT11: 子①学資保険 | BY11: 2035 | BZ11: 200万（予定） | CM11: 車関係 ※ | CU11: =DJ9 -> 810000 | CZ11: 住宅関係（積立の内訳）
CM12: その他の積立 ※ | CU12: =DX18 -> 3960000 | CZ12: 住宅補修用 | DC12: 太陽光プラス分 | DJ12: 400000 | DN12: 別管理 | DQ12: 生活防衛資金 | DX12: 1500000
CZ13: 住宅補修用 | DC13: 家メンテナンス | DJ13: 0
CM15: 貯金用 | CU15: =(SUM(BZ2:CC6)+BZ8)-SUM(CU3:CX14) -> 0 | CZ15: 税金 | DC15: 固定資産税積立て | DJ15: 200000 | DN15: 別管理 | DQ15: 家電まとめて | DX15: 200000
CM16: 合計 | CU16: =SUM(CU3:CX15) -> 6020000 | DN16: 別管理 | DQ16: 定額給付金 | DX16: 330000
CZ17: 住宅ローン | DC17: 繰上げ返済用 | DJ17: 300000 | DN17: 予算確保 | DQ17: 自転車用 | DX17: 80000
B18: 日付 | D18: 入ったお金 | G18: 入った理由 | M18: 使ったお金 | P18: 食費 | Z18: 日用雑貨・化粧品 | AJ18: 娯楽・衣服 | AT18: ガソリン・車関係 | BD18: その他（医療費含） | BN18: 残金 | BQ18: 日付 | BS18: 入ったお金・理由 | CC18: 使ったお金・理由 | CM18: 残金 | DJ18: =SUM(DJ12:DL17) -> 900000 | DX18: =SUM(DX3:DZ17) -> 3960000
M19: =Q19+AA19+AK19+AU19+BE19 -> 0 | AD19: 前月からの繰越 | BN19: 11097
B20: 1 | D20: 150000 | G20: 1月分の生活費 | M20: 60000 | BE20: 60000 | BH20: ２人分おこづかい | BN20: =IF(B20="",0,BN19+D20-M20) -> 101097 | CC20: 7M | CD20: 150000 | CG20: 1月分生活費 | CM20: 夫□□銀行 | CQ20: =BZ2-CD20 -> 2350000 | CZ20: カード払い予定 | DH20: 銀行 | DL20: いくら
B21: 1 | M21: 5000 | P21: 11 | Q21: 5000 | T21: 材料 | BN21: 96097 | CZ21: 12月 | DB21: 写真ネットプリント | DH21: 夫□□銀行 | DL21: 2000
B22: 3 | M22: 4000 | P22: 12 | Q22: 4000 | T22: お米 | BN22: 92097 | BQ22: 15 | BS22: 6M | BT22: 6000 | BW22: 化粧水 | CM22: カード払い予定 | CQ22: =BZ7+BT22 -> 106000 | CZ22: 12月 | DB22: タオル | DH22: 夫□□銀行 | DL22: 3000
B23: 5 | M23: 12500 | P23: 11 | Q23: 6000 | T23: 材料 | AJ23: 33 | AK23: 3500 | AN23: くつ、靴下 | AT23: 41 | AU23: 3000 | AX23: ガソリン | BN23: 79597 | BQ23: 18 | CC23: 73 | CD23: 7000 | CG23: 動物園 | CM23: 夫□□銀行 | CQ23: =CQ20-CD23 -> 2343000 | CU23: 娯楽費 | CZ23: 1月 | DB23: 化粧水 | DH23: 夫□□銀行 | DL23: 6000
B24: 10 | M24: 7000 | P24: 11 | Q24: 7000 | BN24: 72597 | BQ24: 20 | BT24: 20000 | BW24: 児童手当 | CM24: 夫□□銀行 | CQ24: =CQ23+BT24 -> 2363000 | CU24: こどものお金 | CZ24: 1月 | DB24: 自転車 | DH24: 夫□□銀行 | DL24: 50000 | DP24: ①
B25: 15 | M25: 14000 | P25: 11 | Q25: 8000 | Z25: 22 | AA25: 6000 | AD25: 化粧水 | BN25: 58597 | BQ25: 22 | CC25: 73 | CD25: 3000 | CG25: ユニクロ 服 | CM25: 夫□□銀行 | CQ25: =CQ24-CD25 -> 2360000 | CU25: 衣服費（子①） | CZ25: 1月 | DB25: チャイルドシート | DH25: 夫□□銀行 | DL25: 12000 | DP25: ｜
B26: 20 | M26: 10200 | P26: 11 | Q26: 9000 | BE26: 1200 | BH26: 100均一 | BN26: 48397 | BQ26: 22 | CC26: 73 | CD26: 5000 | CG26: ユニクロ 服 | CM26: 夫□□銀行 | CQ26: 2355000 | CU26: 衣服費（子②） | CZ26: 1月 | DB26: ヘルメット | DH26: 夫□□銀行 | DL26: 3000 | DP26: ①
B27: 25 | M27: 6000 | P27: 11 | Q27: 1000 | AT27: 42 | AU27: 5000 | AX27: ガソリン | BN27: 42397 | BQ27: 25 | CC27: 72 | CD27: 8000 | CG27: 予防接種 | CM27: 夫□□銀行 | CQ27: 2347000 | CZ27: 1月 | DH27: 夫□□銀行
B28: 30 | M28: 2000 | P28: 11 | Q28: 2000 | BN28: 40397 | BQ28: 28 | CC28: 73 | CD28: 50000 | CG28: 自転車 | CM28: 夫□□銀行 | CQ28: 2297000 | CU28: 自転車用 | CZ28: 1月 | DH28: 夫□□銀行
B29: 13 | M29: 8000 | Z29: 21 | AA29: 8000 | AD29: 薬局 | BN29: 32397 | BQ29: 28 | CC29: 73 | CD29: 12000 | CG29: チャイルドシート | CM29: 夫□□銀行 | CQ29: 2285000 | CU29: 自転車用
B30: 15 | M30: 3500 | Z30: 23 | AA30: 3500 | AD30: おむつ | BN30: 28897 | BQ30: 28 | CC30: 73 | CD30: 3000 | CG30: ヘルメット | CM30: 夫□□銀行 | CQ30: 2282000 | CU30: 自転車用
B31: 12 | M31: 2500 | BD31: 52 | BE31: 2500 | BH31: 内科（風邪） | BN31: 26397 | BQ31: 28 | BS31: 6M | BT31: 65000 | BW31: ①まとめて | CM31: カード払い予定 | CQ31: =CQ22+BT31 -> 171000
M32: 0 | BN32: 0
M33: 0 | BN33: 0
M34: 0 | BN34: 0
M35: 0 | BN35: 0
M36: 0 | BN36: 0
M37: 0 | BN37: 0
M38: 0 | BN38: 0
M39: 0 | BN39: 0
M40: 0 | BN40: 0 | BQ40: 28 | BS40: 6M | BW40: お金の移動 | CM40: 夫□□銀行 | CQ40: =CQ30+BT40 -> 2282000
M41: 0 | BN41: 0 | BQ41: 28 | CC41: 7M | CG41: お金の移動 | CM41: 妻〇〇銀行 | CQ41: =BZ3-CD41 -> 1500000
M42: 0 | BN42: 0 | BQ42: 25 | BT42: 300000 | BW42: お給料1月分(夫) | CM42: 夫□□銀行 | CQ42: =CQ40+BT42 -> 2582000
M43: 0 | BN43: 0 | BQ43: 25 | BT43: 300000 | BW43: お給料1月分（妻） | CM43: 妻〇〇銀行 | CQ43: =CQ41+BT43 -> 1800000
M44: 0 | BN44: 0 | BQ44: 25 | BT44: 10000 | BW44: 太陽光発電プラス分 | CM44: 夫□□銀行 | CQ44: =CQ42+BT44 -> 2592000 | CU44: 太陽光ﾌﾟﾗｽ分
M45: 0 | BN45: 0
M46: 0 | BN46: 0
M47: 0 | BN47: 0
M48: 0 | BN48: 0
M49: 0 | BN49: 0
M50: 0 | BN50: 0
M51: 0 | BN51: 0 | CC51: 7M | CD51: 80000 | CG51: カード引き落し | CM51: カード払い予定 | CQ51: =CQ31-CD51 -> 91000
M52: 0 | BN52: 0 | BS52: 6M | BT52: =SUMIF(CJ60:CJ71,"カード",BZ60:BZ71) -> 55000 | BW52: カード払い予定 | CM52: カード払い予定 | CQ52: =CQ51+BT52 -> 146000
M53: 0 | BN53: 0 | CC53: 71 | CD53: =SUM(BZ60:CB70) -> 137600 | CG53: 固定支出 | CM53: 夫□□銀行 | CQ53: =CQ44-CD53 -> 2454400
M54: 0 | BN54: 0 | CC54: 71 | CD54: 2000 | CG54: 小学校引落とし | CM54: ゆうちょ | CQ54: =BZ8-CD54 -> 18000
M55: 0 | BN55: 0
M56: 0 | BN56: 0
N59: 生活費支出 | P59: =SUM(M20:O56) -> 134700 | AD59: 45000 | AK59: 26000 | AY59: 8000 | BF59: 15000 | BX59: 日付 | BZ59: お金 | CC59: 理由 | CJ59: どこから
G60: 収入 | I60: =SUM(BT42:BV44) -> 610000 | N60: 支出 | P60: =SUM(M20:O56)+BP60+BQ62+BQ63 -> 362300 | U60: ＋ or － | X60: =I60-P60 -> 247700 | AD60: 食費 | AG60: =SUM(Q20:S56) -> 42000 | AK60: 日雑・化粧 | AN60: =SUM(AA20:AC56) -> 17500 | AR60: 娯楽・衣服 | AU60: =SUM(AK20:AM56) -> 3500 | AY60: ｶﾞｿﾘﾝ・車 | BB60: =SUM(AU20:AW56) -> 8000 | BF60: その他 | BI60: =SUM(BE20:BG56) -> 63700 | BM60: 固定費 | BP60: =SUMIF(CC19:CC56,71,CD19:CF56) -> 139600 | BX60: 16 | BZ60: 2000 | CC60: 夫携帯 | CJ60: カード
BX61: 31 | BZ61: 2000 | CC61: 妻携帯 | CJ61: カード
N62: (実質) | P62: =P60-(BQ62+BQ63) -> 274300 | AD62: (材料) | AG62: =SUMIF(P20:P56,11,Q20:S56) -> 38000 | AK62: (日用雑貨) | AN62: =SUMIF(Z20:Z56,21,AA20:AC56) -> 8000 | AR62: (服：夫) | AU62: =SUMIF(AJ20:AJ56,31,AK20:AM56)+SUMIF(CU20:CU56,"衣服費（夫）",CD20:CF56) -> 0 | AY62: (ｶﾞｿﾘﾝ：夫) | BB62: =SUMIF(AT20:AT56,41,AU20:AW56) -> 3000 | BF62: (医療：夫) | BI62: =SUMIF(BD20:BD56,51,BE20:BG56) -> 0 | BM62: 純貯金から- | BQ62: =SUMIF(CC19:CC56,72,CD19:CF56) -> 8000 | BX62: 31 | BZ62: 500 | CC62: 通話料 | CJ62: カード
AD63: (米代) | AG63: =SUMIF(P20:P56,12,Q20:S56) -> 4000 | AK63: (化粧品) | AN63: =SUMIF(Z20:Z56,22,AA20:AC56) -> 6000 | AR63: (服：妻) | AU63: =SUMIF(AJ20:AJ56,32,AK20:AM56)+SUMIF(CU20:CU56,"衣服費（妻）",CD20:CF56) -> 0 | AY63: (ｶﾞｿﾘﾝ：妻) | BB63: =SUMIF(AT20:AT56,42,AU20:AW56) -> 5000 | BF63: (医療：妻) | BI63: =SUMIF(BD20:BD56,52,BE20:BG56) -> 2500 | BM63: 振分貯金から- | BQ63: =SUMIF(CC19:CC56,73,CD19:CF56) -> 80000 | BX63: 11 | BZ63: 5500 | CC63: ネット | CJ63: カード
AD64: (外食) | AG64: =SUMIF(P20:P56,13,Q20:S56)+SUMIF(CU20:CU56,"外食",CD20:CF56) -> 0 | AK64: (子②用品) | AN64: =SUMIF(Z20:Z56,23,AA20:AC56) -> 3500 | AR64: (服：子①) | AU64: =SUMIF(AJ20:AJ56,33,AK20:AM56)+SUMIF(CU20:CU56,"衣服費（子①）",CD20:CF56) -> 6500 | AY64: (車メンテ) | BB64: =SUMIF(AT20:AT56,43,AU20:AW56) -> 0 | BF64: (医療：子①) | BI64: =SUMIF(BD20:BD56,53,BE20:BG56) -> 0 | BX64: 25 | BZ64: 8000 | CC64: 電気1月分(555kwh) | CJ64: カード
AR65: (服：子②) | AU65: =SUMIF(AJ20:AJ56,33,AK20:AM56)+SUMIF(CU20:CU56,"衣服費（子②）",CD20:CF56) -> 8500 | BF65: (医療：子②) | BI65: =SUMIF(BD20:BD56,54,BE20:BG56) -> 0 | BM65: 家計費ﾏｲﾅｽ | BQ65: =SUMIF(CU20:CU56,"家計費補充",CD20:CF56) -> 0 | BX65: - | BZ65: - | CC65: 水道（上下水）(55㎥) | CJ65: 夫□□銀行
AR66: (娯楽) | AU66: =SUMIF(AJ20:AJ56,33,AK20:AM56)+SUMIF(CU20:CU56,"娯楽費",CD20:CF56) -> 10500 | BF66: (学校) | BI66: =SUMIF(BD20:BD56,61,BE20:BG56) -> 0 | BX66: 26 | BZ66: 2600 | CC66: ＮＨＫ1、2月分 | CJ66: 夫□□銀行
BX67: 5 | BZ67: 80000 | CC67: 住宅ローン | CJ67: 夫□□銀行
BX68: 1 | BZ68: 15000 | CC68: 生命・医療保険(夫) | CJ68: カード
BX69: 1 | BZ69: 7000 | CC69: 生命・医療保険(妻) | CJ69: カード
BX70: 1 | BZ70: 15000 | CC70: 学資保険 | CJ70: カード

Sheet 2月
BR1: 銀行メモ
BT2: 夫□□銀行 | BZ2: 2454400 | CF2: 内訳メモからマイナス | CM2: 内訳メモ | CU2: いくら | CZ2: 車関係（積立の内訳） | DN2: その他（積立の内訳） | EB2: 衣服費（内訳）
BT3: 妻〇〇銀行 | BZ3: 1800000 | CF3: 純貯金からマイナス | CM3: 自由費 | CU3: 100000 | CZ3: 2022/01 | DC3: 共通 | DF3: 車検の積立て | DJ3: 200000 | DN3: 勉強 | DQ3: 資格取得、自己啓発費用 | DX3: 200000 | EB3: 妻 | EL3: 10000
CF4: ボーナスから振分 | CZ4: 2021/05 | DC4: 共通 | DF4: 車税積立て（2人分） | DJ4: 50000 | DN4: 子ども | DQ4: 子①のお金（児童手当） | DX4: 810000 | EB4: 夫 | EL4: 10000
BT5: ネット銀行定期 | BZ5: 1000000 | CF5: （マイナスは純貯金からする | CZ5: 2021/09 | DC5: 妻 | DF5: 車保険 | DJ5: 60000 | DN5: 子ども | DQ5: 子①のお金（児童手当以外） | DX5: 20000 | EB5: 子① | EL5: 17000
BT6: ネット銀行運用 | BZ6: 1000000 | CF6: こと！） | CZ6: 2021/01 | DC6: 夫 | DF6: 車保険 | DJ6: 0 | DN6: 子ども | DQ6: 子①のお金（将来の学費貯金） | DX6: 500000 | EB6: 子② | EL6: 15000
BT7: カード払い予定 | BZ7: 146000 | CM7: 旅行用（日帰り含む） | CU7: 160000 | CZ7: 2025 | DC7: 妻 | DF7: 車の買替え用 | DJ7: 500000 | DN7: 子ども | DQ7: 子②のお金（児童手当） | DX7: 110000 | EL7: =SUM(EL3:EN6) -> 52000
BT8: ゆうちょ | BZ8: 18000 | CM8: 娯楽費 | CU8: 27000 | DN8: 子ども | DQ8: 子②のお金（児童手当以外） | DX8: 30000
CM9: 衣服費 ※ | CU9: =EL7 -> 52000 | DJ9: =SUM(DJ3:DL8) -> 810000 | DN9: 子ども | DQ9: 子②のお金（将来の学費貯金） | DX9: 200000
BR10: 学資・保険運用 | CM10: 住宅関係 ※ | CU10: =DJ18 -> 910000
BT11: 子①学資保険 | BY11: 2035年 | BZ11: 200万（予定） | CM11: 車関係 ※ | CU11: =DJ9 -> 810000 | CZ11: 住宅関係（積立の内訳）
CM12: その他の積立 ※ | CU12: =DX18 -> 3900000 | CZ12: 住宅補修用 | DC12: 太陽光プラス分 | DJ12: 410000 | DN12: 別管理 | DQ12: 生活防衛資金 | DX12: 1500000
CZ13: 住宅補修用 | DC13: 家メンテナンス | DJ13: 0
CM15: 貯金用 | CU15: =(SUM(BZ2:CC6)+BZ8)-SUM(CU3:CX14) -> 313400 | CZ15: 税金 | DC15: 固定資産税積立て | DJ15: 200000 | DN15: 別管理 | DQ15: 家電まとめて | DX15: 200000
CM16: 合計 | CU16: =SUM(CU3:CX15) -> 6272400 | DN16: 別管理 | DQ16: 定額給付金 | DX16: 330000
CZ17: 住宅ローン | DC17: 繰上げ返済用 | DJ17: 300000
B18: 日付 | D18: 入ったお金 | G18: 入った理由 | M18: 使ったお金 | P18: 食費 | Z18: 日用雑貨・化粧品 | AJ18: 娯楽・衣服 | AT18: ガソリン・車関係 | BD18: その他（医療費含） | BN18: 残金 | BQ18: 日付 | BS18: 入ったお金・理由 | CC18: 使ったお金・理由 | CM18: 残金 | DJ18: =SUM(DJ12:DL17) -> 910000 | DX18: =SUM(DX3:DZ17) -> 3900000
M19: =Q19+AA19+AK19+AU19+BE19 -> 0 | AD19: 前月からの繰越 | BN19: 26397
B20: 1 | D20: 150000 | G20: 2月分の生活費 | M20: 60000 | BE20: 60000 | BH20: ２人分おこづかい | BN20: =IF(B20="",0,BN19+D20-M20) -> 116397 | CC20: 7M | CD20: 150000 | CG20: 2月分生活費 | CM20: 夫□□銀行 | CQ20: =BZ2-CD20 -> 2304400 | CZ20: カード払い予定 | DH20: 銀行 | DL20: いくら
B21: 1 | M21: 5000 | P21: 11 | Q21: 5000 | T21: 材料 | BN21: 111397 | BQ21: 15 | BS21: 6M | BT21: 5000 | BW21: 化粧下地 | CM21: カード払い予定 | CQ21: =BZ7+BT21 -> 151000 | CZ21: 1月 | DB21: 化粧水 | DH21: 夫□□銀行 | DL21: 6000
B22: 3 | M22: 4000 | P22: 12 | Q22: 4000 | T22: お米 | BN22: 107397 | BQ22: 18 | CC22: 73 | CD22: 5000 | CG22: 外食 | CM22: 夫□□銀行 | CQ22: =CQ20-CD22 -> 2299400 | CU22: 娯楽費 | CZ22: 1月 | DB22: 自転車 | DH22: 夫□□銀行 | DL22: 50000
B23: 5 | M23: 12500 | P23: 11 | Q23: 6000 | T23: 材料 | AJ23: 33 | AK23: 3500 | AN23: くつ、靴下 | AT23: 41 | AU23: 3000 | AX23: ガソリン | BN23: 94897 | BQ23: 20 | BT23: 20000 | BW23: 児童手当 | CM23: 夫□□銀行 | CQ23: =CQ22+BT23 -> 2319400 | CU23: こどものお金 | CZ23: 1月 | DB23: チャイルドシート | DH23: 夫□□銀行 | DL23: 12000
B24: 10 | M24: 7000 | P24: 11 | Q24: 7000 | BN24: 87897 | BQ24: 28 | CC24: 72 | CD24: 8000 | CG24: 子①誕生日 | CM24: 夫□□銀行 | CQ24: =CQ23-CD24 -> 2311400 | CU24: 記念日、年単位出費 | CZ24: 1月 | DB24: ヘルメット | DH24: 夫□□銀行 | DL24: 3000
B25: 15 | M25: 13000 | P25: 11 | Q25: 8000 | Z25: 22 | AA25: 5000 | AD25: 化粧下地 | BN25: 74897 | BQ25: 28 | CC25: 72 | CD25: 18000 | CG25: 子①おでかけ | CM25: 夫□□銀行 | CQ25: =CQ24-CD25 -> 2293400 | CU25: 記念日、年単位出費 | CZ25: 2月 | DB25: 化粧下地 | DH25: 夫□□銀行 | DL25: 5000
B26: 20 | M26: 10200 | P26: 11 | Q26: 9000 | BE26: 1200 | BH26: 100均一 | BN26: 64697 | BQ26: 30 | CC26: 73 | CD26: 5000 | CG26: ＤＶＤ | CM26: 夫□□銀行 | CQ26: =CQ25-CD26 -> 2288400 | CU26: 娯楽費 | CZ26: 2月 | DB26: ＤＶＤ | DH26: 夫□□銀行 | DL26: 5000 | DP26: ①
B27: 25 | M27: 6000 | P27: 11 | Q27: 1000 | AT27: 42 | AU27: 5000 | AX27: ガソリン | BN27: 58697 | BQ27: 30 | CC27: 73 | CD27: 5000 | CG27: 服 | CM27: 夫□□銀行 | CQ27: =CQ26-CD27 -> 2283400 | CU27: 衣服費（夫） | CZ27: 2月 | DB27: 服（夫） | DH27: 夫□□銀行 | DL27: 5000 | DP27: ｜
B28: 30 | M28: 2000 | P28: 11 | Q28: 2000 | BN28: 56697 | BQ28: 30 | CC28: 73 | CD28: 5000 | CG28: 服 | CM28: 夫□□銀行 | CQ28: =CQ27-CD28 -> 2278400 | CU28: 衣服費（妻） | CZ28: 2月 | DB28: 服（妻） | DH28: 夫□□銀行 | DL28: 5000 | DP28: ①
B29: 13 | M29: 8000 | Z29: 21 | AA29: 8000 | AD29: 薬局 | BN29: 48697 | BQ29: 30 | BS29: 6M | BT29: 15000 | BW29: ①まとめて | CM29: カード払い予定 | CQ29: =CQ21+BT29 -> 166000 | CZ29: 2月 | DH29: 夫□□銀行
B30: 15 | M30: 3500 | Z30: 23 | AA30: 3500 | AD30: おむつ | BN30: 45197 | CZ30: 2月 | DH30: 夫□□銀行
B31: 12 | M31: 2500 | BD31: 52 | BE31: 2500 | BH31: 内科（風邪） | BN31: 42697
M32: 0 | BN32: 0
M33: 0 | BN33: 0
M34: 0 | BN34: 0
M35: 0 | BN35: 0
M36: 0 | BN36: 0
M37: 0 | BN37: 0
M38: 0 | BN38: 0
M39: 0 | BN39: 0
M40: 0 | BN40: 0 | BQ40: 28 | BS40: 6M | BW40: お金の移動 | CM40: 夫□□銀行 | CQ40: =CQ28+BT40 -> 2278400
M41: 0 | BN41: 0 | BQ41: 28 | CC41: 7M | CG41: お金の移動 | CM41: 妻〇〇銀行 | CQ41: =BZ3-CD41 -> 1800000
M42: 0 | BN42: 0 | BQ42: 28 | BT42: 300000 | BW42: お給料2月分(夫) | CM42: 夫□□銀行 | CQ42: =CQ40+BT42 -> 2578400
M43: 0 | BN43: 0 | BQ43: 28 | BT43: 300000 | BW43: お給料2月分（妻） | CM43: 妻〇〇銀行 | CQ43: =CQ41+BT43 -> 2100000
M44: 0 | BN44: 0 | BQ44: 28 | BT44: 10000 | BW44: 太陽光発電プラス分 | CM44: 夫□□銀行 | CQ44: =CQ42+BT44 -> 2588400 | CU44: 太陽光ﾌﾟﾗｽ分
M45: 0 | BN45: 0
M46: 0 | BN46: 0
M47: 0 | BN47: 0
M48: 0 | BN48: 0
M49: 0 | BN49: 0
M50: 0 | BN50: 0
M51: 0 | BN51: 0 | CC51: 7M | CD51: 80000 | CG51: カード引き落し | CM51: カード払い予定 | CQ51: =CQ29-CD51 -> 86000
M52: 0 | BN52: 0 | BS52: 6M | BT52: =SUMIF(CJ60:CJ71,"カード",BZ60:BZ71) -> 55000 | BW52: カード払い予定 | CM52: カード払い予定 | CQ52: =CQ51+BT52 -> 141000
M53: 0 | BN53: 0 | CC53: 71 | CD53: =SUM(BZ60:CB70) -> 145000 | CG53: 固定支出 | CM53: 夫□□銀行 | CQ53: =CQ44-CD53 -> 2443400
M54: 0 | BN54: 0 | CC54: 71 | CD54: 2000 | CG54: 小学校引落とし | CM54: ゆうちょ | CQ54: =BZ8-CD54 -> 16000
M55: 0 | BN55: 0
M56: 0 | BN56: 0
N59: 生活費支出 | P59: =SUM(M20:O56) -> 133700 | AD59: 45000 | AK59: 26000 | AY59: 8000 | BF59: 15000 | BX59: 日付 | BZ59: お金 | CC59: 理由 | CJ59: どこから
G60: 収入 | I60: =SUM(BT42:BV44) -> 610000 | N60: 支出 | P60: =SUM(M20:O56)+BP60+BQ62+BQ63 -> 326700 | U60: ＋ or － | X60: =I60-P60 -> 283300 | AD60: 食費 | AG60: =SUM(Q20:S56) -> 42000 | AK60: 日雑・化粧 | AN60: =SUM(AA20:AC56) -> 16500 | AR60: 娯楽・衣服 | AU60: =SUM(AK20:AM56) -> 3500 | AY60: ｶﾞｿﾘﾝ・車 | BB60: =SUM(AU20:AW56) -> 8000 | BF60: その他 | BI60: =SUM(BE20:BG56) -> 63700 | BM60: 固定費 | BP60: =SUMIF(CC19:CC56,71,CD19:CF56) -> 147000 | BX60: 16 | BZ60: 2000 | CC60: 夫携帯 | CJ60: カード
BX61: 31 | BZ61: 2000 | CC61: 妻携帯 | CJ61: カード
N62: (実質) | P62: =P60-(BQ62+BQ63) -> 280700 | AD62: (材料) | AG62: =SUMIF(P20:P56,11,Q20:S56) -> 38000 | AK62: (日用雑貨) | AN62: =SUMIF(Z20:Z56,21,AA20:AC56) -> 8000 | AR62: (服：夫) | AU62: =SUMIF(AJ20:AJ56,31,AK20:AM56)+SUMIF(CU20:CU56,"衣服費（夫）",CD20:CF56) -> 5000 | AY62: (ｶﾞｿﾘﾝ：夫) | BB62: =SUMIF(AT20:AT56,41,AU20:AW56) -> 3000 | BF62: (医療：夫) | BI62: =SUMIF(BD20:BD56,51,BE20:BG56) -> 0 | BM62: 純貯金から- | BQ62: =SUMIF(CC19:CC56,72,CD19:CF56) -> 26000 | BX62: 31 | BZ62: 500 | CC62: 通話料 | CJ62: カード
AD63: (米代) | AG63: =SUMIF(P20:P56,12,Q20:S56) -> 4000 | AK63: (化粧品) | AN63: =SUMIF(Z20:Z56,22,AA20:AC56) -> 5000 | AR63: (服：妻) | AU63: =SUMIF(AJ20:AJ56,32,AK20:AM56)+SUMIF(CU20:CU56,"衣服費（妻）",CD20:CF56) -> 5000 | AY63: (ｶﾞｿﾘﾝ：妻) | BB63: =SUMIF(AT20:AT56,42,AU20:AW56) -> 5000 | BF63: (医療：妻) | BI63: =SUMIF(BD20:BD56,52,BE20:BG56) -> 2500 | BM63: 振分貯金から- | BQ63: =SUMIF(CC19:CC56,73,CD19:CF56) -> 20000 | BX63: 11 | BZ63: 5500 | CC63: ネット | CJ63: カード
AD64: (外食) | AG64: =SUMIF(P20:P56,13,Q20:S56)+SUMIF(CU20:CU56,"外食",CD20:CF56) -> 0 | AK64: (子②用品) | AN64: =SUMIF(Z20:Z56,23,AA20:AC56) -> 3500 | AR64: (服：子①) | AU64: =SUMIF(AJ20:AJ56,33,AK20:AM56)+SUMIF(CU20:CU56,"衣服費（子①）",CD20:CF56) -> 3500 | AY64: (車メンテ) | BB64: =SUMIF(AT20:AT56,43,AU20:AW56) -> 0 | BF64: (医療：子①) | BI64: =SUMIF(BD20:BD56,53,BE20:BG56) -> 0 | BX64: 25 | BZ64: 8000 | CC64: 電気1月分(555kwh) | CJ64: カード
AR65: (服：子②) | AU65: =SUMIF(AJ20:AJ56,33,AK20:AM56)+SUMIF(CU20:CU56,"衣服費（子②）",CD20:CF56) -> 3500 | BF65: (医療：子②) | BI65: =SUMIF(BD20:BD56,54,BE20:BG56) -> 0 | BM65: 家計費ﾏｲﾅｽ | BQ65: =SUMIF(CU20:CU56,"家計費補充",CD20:CF56) -> 0 | BX65: 25 | BZ65: 10000 | CC65: 水道（上下水）(55㎥) | CJ65: 夫□□銀行
AR66: (娯楽) | AU66: =SUMIF(AJ20:AJ56,33,AK20:AM56)+SUMIF(CU20:CU56,"娯楽費",CD20:CF56) -> 13500 | BF66: (学校) | BI66: =SUMIF(BD20:BD56,61,BE20:BG56) -> 0 | BX66: - | BZ66: - | CC66: ＮＨＫ1、2月分 | CJ66: 夫□□銀行
BX67: 5 | BZ67: 80000 | CC67: 住宅ローン | CJ67: 夫□□銀行
BX68: 1 | BZ68: 15000 | CC68: 生命・医療保険(夫) | CJ68: カード
BX69: 1 | BZ69: 7000 | CC69: 生命・医療保険(妻) | CJ69: カード
BX70: 1 | BZ70: 15000 | CC70: 学資保険 | CJ70: カード

Sheet 3月
BR1: 銀行メモ
BT2: 夫□□銀行 | BZ2: 2443400 | CF2: 内訳メモからマイナス | CM2: 内訳メモ | CU2: いくら | CZ2: 車関係（積立の内訳） | DN2: その他（積立の内訳） | EB2: 衣服費（内訳）
BT3: 妻〇〇銀行 | BZ3: 2100000 | CF3: 純貯金からマイナス | CM3: 自由費 | CU3: 100000 | CZ3: 2022/01 | DC3: 共通 | DF3: 車検の積立て | DJ3: 200000 | DN3: 勉強 | DQ3: 資格取得、自己啓発費用 | DX3: 200000 | EB3: 妻 | EL3: 10000
CF4: ボーナスから振分 | CZ4: 2021/05 | DC4: 共通 | DF4: 車税積立て（2人分） | DJ4: 50000 | DN4: 子ども | DQ4: 子①のお金（児童手当） | DX4: 810000 | EB4: 夫 | EL4: 10000
BT5: ネット銀行定期 | BZ5: 1000000 | CF5: （マイナスは純貯金からする | CZ5: 2021/09 | DC5: 妻 | DF5: 車保険 | DJ5: 60000 | DN5: 子ども | DQ5: 子①のお金（児童手当以外） | DX5: 20000 | EB5: 子① | EL5: 17000
BT6: ネット銀行運用 | BZ6: 1000000 | CF6: こと！） | CZ6: 2021/01 | DC6: 夫 | DF6: 車保険 | DJ6: 0 | DN6: 子ども | DQ6: 子①のお金（将来の学費貯金） | DX6: 500000 | EB6: 子② | EL6: 15000
BT7: カード払い予定 | BZ7: 141000 | CM7: 旅行用（日帰り含む） | CU7: 160000 | CZ7: 2025 | DC7: 妻 | DF7: 車の買替え用 | DJ7: 500000 | DN7: 子ども | DQ7: 子②のお金（児童手当） | DX7: 110000 | EL7: =SUM(EL3:EN6) -> 52000
BT8: ゆうちょ | BZ8: 16000 | CM8: 娯楽費 | CU8: 27000 | DN8: 子ども | DQ8: 子②のお金（児童手当以外） | DX8: 30000
CM9: 衣服費 ※ | CU9: =EL7 -> 52000 | DJ9: =SUM(DJ3:DL8) -> 810000 | DN9: 子ども | DQ9: 子②のお金（将来の学費貯金） | DX9: 200000
BR10: 学資・保険運用 | CM10: 住宅関係 ※ | CU10: =DJ18 -> 920000
BT11: 子①学資保険 | BY11: 2035年 | BZ11: 200万（予定） | CM11: 車関係 ※ | CU11: =DJ9 -> 810000 | CZ11: 住宅関係（積立の内訳）
CM12: その他の積立 ※ | CU12: =DX18 -> 3900000 | CZ12: 住宅補修用 | DC12: 太陽光プラス分 | DJ12: 420000 | DN12: 別管理 | DQ12: 生活防衛資金 | DX12: 1500000
CZ13: 住宅補修用 | DC13: 家メンテナンス | DJ13: 0
CM15: 貯金用 | CU15: =(SUM(BZ2:CC6)+BZ8)-SUM(CU3:CX14) -> 590400 | CZ15: 税金 | DC15: 固定資産税積立て | DJ15: 200000 | DN15: 別管理 | DQ15: 家電まとめて | DX15: 200000
CM16: 合計 | CU16: =SUM(CU3:CX15) -> 6559400 | DN16: 別管理 | DQ16: 定額給付金 | DX16: 330000
CZ17: 住宅ローン | DC17: 繰上げ返済用 | DJ17: 300000
B18: 日付 | D18: 入ったお金 | G18: 入った理由 | M18: 使ったお金 | P18: 食費 | Z18: 日用雑貨・化粧品 | AJ18: 娯楽・衣服 | AT18: ガソリン・車関係 | BD18: その他（医療費含） | BN18: 残金 | BQ18: 日付 | BS18: 入ったお金・理由 | CC18: 使ったお金・理由 | CM18: 残金 | DJ18: =SUM(DJ12:DL17) -> 920000 | DX18: =SUM(DX3:DZ17) -> 3900000
M19: =Q19+AA19+AK19+AU19+BE19 -> 0 | AD19: 前月からの繰越 | BN19: 11097
B20: 1 | D20: 150000 | G20: 3月分の生活費 | M20: 60000 | BE20: 60000 | BH20: ２人分おこづかい | BN20: =IF(B20="",0,BN19+D20-M20) -> 101097 | CC20: 7M | CD20: 150000 | CG20: 3月分生活費 | CM20: 夫□□銀行 | CQ20: =BZ2-CD20 -> 2293400 | CZ20: カード払い予定 | DH20: 銀行 | DL20: いくら
B21: 1 | M21: 0 | BN21: 101097 | CZ21: 2月 | DB21: 化粧下地 | DH21: 夫□□銀行 | DL21: 5000
M22: 0 | BN22: 0 | CZ22: 2月 | DB22: ＤＶＤ | DH22: 夫□□銀行 | DL22: 5000
M23: 0 | BN23: 0 | CZ23: 2月 | DB23: 服（夫） | DH23: 夫□□銀行 | DL23: 5000
M24: 0 | BN24: 0 | CZ24: 2月 | DB24: 服（妻） | DH24: 夫□□銀行 | DL24: 5000
M25: 0 | BN25: 0 | CZ25: 3月 | DH25: 夫□□銀行
M26: 0 | BN26: 0 | CZ26: 3月 | DH26: 夫□□銀行
M27: 0 | BN27: 0
M28: 0 | BN28: 0
M29: 0 | BN29: 0
M30: 0 | BN30: 0
M31: 0 | BN31: 0
M32: 0 | BN32: 0
M33: 0 | BN33: 0
M34: 0 | BN34: 0
M35: 0 | BN35: 0
M36: 0 | BN36: 0
M37: 0 | BN37: 0
M38: 0 | BN38: 0
M39: 0 | BN39: 0
M40: 0 | BN40: 0 | BQ40: 28 | BS40: 6M | BW40: お金の移動 | CM40: 夫□□銀行
M41: 0 | BN41: 0 | BQ41: 28 | CC41: 7M | CG41: お金の移動 | CM41: 妻〇〇銀行
M42: 0 | BN42: 0 | BW42: お給料3月分(夫) | CM42: 夫□□銀行
M43: 0 | BN43: 0 | BW43: お給料3月分（妻） | CM43: 妻〇〇銀行
M44: 0 | BN44: 0 | BW44: 太陽光発電プラス分 | CM44: 夫□□銀行 | CU44: 太陽光ﾌﾟﾗｽ分
M45: 0 | BN45: 0
M46: 0 | BN46: 0
M47: 0 | BN47: 0
M48: 0 | BN48: 0
M49: 0 | BN49: 0
M50: 0 | BN50: 0
M51: 0 | BN51: 0 | CC51: 7M | CG51: カード引き落し | CM51: カード払い予定
M52: 0 | BN52: 0 | BS52: 6M | BT52: =SUMIF(CJ60:CJ71,"カード",BZ60:BZ71) -> 0 | BW52: カード払い予定 | CM52: カード払い予定
M53: 0 | BN53: 0 | CC53: 71 | CD53: =SUM(BZ60:CB70) -> 0 | CG53: 固定支出 | CM53: 夫□□銀行
M54: 0 | BN54: 0 | CC54: 71 | CG54: 小学校引落とし | CM54: ゆうちょ
M55: 0 | BN55: 0
M56: 0 | BN56: 0
N59: 生活費支出 | P59: =SUM(M20:O56) -> 60000 | AD59: 45000 | AK59: 26000 | AY59: 8000 | BF59: 15000 | BX59: 日付 | BZ59: お金 | CC59: 理由 | CJ59: どこから
G60: 収入 | I60: =SUM(BT42:BV44) -> 0 | N60: 支出 | P60: =SUM(M20:O56)+BP60+BQ62+BQ63 -> 60000 | U60: ＋ or － | X60: =I60-P60 -> -60000 | AD60: 食費 | AG60: =SUM(Q20:S56) -> 0 | AK60: 日雑・化粧 | AN60: =SUM(AA20:AC56) -> 0 | AR60: 娯楽・衣服 | AU60: =SUM(AK20:AM56) -> 0 | AY60: ｶﾞｿﾘﾝ・車 | BB60: =SUM(AU20:AW56) -> 0 | BF60: その他 | BI60: =SUM(BE20:BG56) -> 60000 | BM60: 固定費 | BP60: =SUMIF(CC19:CC56,71,CD19:CF56) -> 0 | CC60: 夫携帯 | CJ60: カード
CC61: 妻携帯 | CJ61: カード
N62: (実質) | P62: =P60-(BQ62+BQ63) -> 60000 | AD62: (材料) | AG62: =SUMIF(P20:P56,11,Q20:S56) -> 0 | AK62: (日用雑貨) | AN62: =SUMIF(Z20:Z56,21,AA20:AC56) -> 0 | AR62: (服：夫) | AU62: =SUMIF(AJ20:AJ56,31,AK20:AM56)+SUMIF(CU20:CU56,"衣服費（夫）",CD20:CF56) -> 0 | AY62: (ｶﾞｿﾘﾝ：夫) | BB62: =SUMIF(AT20:AT56,41,AU20:AW56) -> 0 | BF62: (医療：夫) | BI62: =SUMIF(BD20:BD56,51,BE20:BG56) -> 0 | BM62: 純貯金から- | BQ62: =SUMIF(CC19:CC56,72,CD19:CF56) -> 0 | CC62: 通話料 | CJ62: カード
AD63: (米代) | AG63: =SUMIF(P20:P56,12,Q20:S56) -> 0 | AK63: (化粧品) | AN63: =SUMIF(Z20:Z56,22,AA20:AC56) -> 0 | AR63: (服：妻) | AU63: =SUMIF(AJ20:AJ56,32,AK20:AM56)+SUMIF(CU20:CU56,"衣服費（妻）",CD20:CF56) -> 0 | AY63: (ｶﾞｿﾘﾝ：妻) | BB63: =SUMIF(AT20:AT56,42,AU20:AW56) -> 0 | BF63: (医療：妻) | BI63: =SUMIF(BD20:BD56,52,BE20:BG56) -> 0 | BM63: 振分貯金から- | BQ63: =SUMIF(CC19:CC56,73,CD19:CF56) -> 0 | CC63: ネット | CJ63: カード
AD64: (外食) | AG64: =SUMIF(P20:P56,13,Q20:S56)+SUMIF(CU20:CU56,"外食",CD20:CF56) -> 0 | AK64: (子②用品) | AN64: =SUMIF(Z20:Z56,23,AA20:AC56) -> 0 | AR64: (服：子①) | AU64: =SUMIF(AJ20:AJ56,33,AK20:AM56)+SUMIF(CU20:CU56,"衣服費（子①）",CD20:CF56) -> 0 | AY64: (車メンテ) | BB64: =SUMIF(AT20:AT56,43,AU20:AW56) -> 0 | BF64: (医療：子①) | BI64: =SUMIF(BD20:BD56,53,BE20:BG56) -> 0 | CC64: 電気3月分(999kwh) | CJ64: カード
AR65: (服：子②) | AU65: =SUMIF(AJ20:AJ56,33,AK20:AM56)+SUMIF(CU20:CU56,"衣服費（子②）",CD20:CF56) -> 0 | BF65: (医療：子②) | BI65: =SUMIF(BD20:BD56,54,BE20:BG56) -> 0 | BM65: 家計費ﾏｲﾅｽ | BQ65: =SUMIF(CU20:CU56,"家計費補充",CD20:CF56) -> 0 | CC65: 水道（上下水）(99㎥) | CJ65: 夫□□銀行
AR66: (娯楽) | AU66: =SUMIF(AJ20:AJ56,33,AK20:AM56)+SUMIF(CU20:CU56,"娯楽費",CD20:CF56) -> 0 | BF66: (学校) | BI66: =SUMIF(BD20:BD56,61,BE20:BG56) -> 0 | CC66: ＮＨＫ3、4月分 | CJ66: 夫□□銀行
CC67: 住宅ローン | CJ67: 夫□□銀行
CC68: 生命・医療保険(夫) | CJ68: カード
CC69: 生命・医療保険(妻) | CJ69: カード
CC70: 学資保険 | CJ70: カード
